[Event "Titled Tuesday Blitz February 15 Early 2022"]
[White "Jain Kashish Manoj"]
[Black "Lakshmi C"]
[WhiteFideId "35081098"]
[BlackFideId "25035347"]
[WhiteElo "1681"]
[BlackElo "1775"]
[Result "1-0"]
[Round "11"]
[TimeControl "180+1"]
[Date "2022.02.15"]
[WhiteClock "0:01:21"]
[BlackClock "0:00:11"]

1. Nf3 {[%clk 0:02:58]}  Nf6 {[%clk 0:02:51]} 2. g3 {[%clk 0:02:59]}  d5 {[%clk 0:02:50]} 3. Bg2 {[%clk 0:02:59]}  c5 {[%clk 0:02:50]} 4. O-O {[%clk 0:03:00]}  g6 {[%clk 0:02:50]} 5. d3 {[%clk 0:03:01]}  Bg7 {[%clk 0:02:48]} 6. Nc3 {[%clk 0:03:01]}  Nc6 {[%clk 0:02:46]} 7. a3 {[%clk 0:03:02]}  e5 {[%clk 0:02:45]} 8. Bg5 {[%clk 0:03:00]}  h6 {[%clk 0:02:44]} 9. Bxf6 {[%clk 0:02:57]}  Bxf6 {[%clk 0:02:44]} 10. e4 {[%clk 0:02:57]}  d4 {[%clk 0:02:39]} 11. Nd5 {[%clk 0:02:57]}  Bg7 {[%clk 0:02:40]} 12. c4 {[%clk 0:02:57]}  dxc3 {[%clk 0:02:38]} 13. bxc3 {[%clk 0:02:57]}  Be6 {[%clk 0:02:38]} 14. c4 {[%clk 0:02:57]}  O-O {[%clk 0:02:36]} 15. Nd2 {[%clk 0:02:54]}  Nd4 {[%clk 0:02:31]} 16. Rb1 {[%clk 0:02:55]}  Rb8 {[%clk 0:02:30]} 17. Nb3 {[%clk 0:02:54]}  b6 {[%clk 0:02:24]} 18. Nxd4 {[%clk 0:02:53]}  cxd4 {[%clk 0:02:24]} 19. Qa4 {[%clk 0:02:50]}  Ra8 {[%clk 0:02:12]} 20. f4 {[%clk 0:02:39]}  f5 {[%clk 0:02:10]} 21. fxe5 {[%clk 0:02:20]}  Bxe5 {[%clk 0:02:04]} 22. Qc6 {[%clk 0:02:18]}  Qd7 {[%clk 0:01:52]} 23. exf5 {[%clk 0:02:08]}  Bxf5 {[%clk 0:01:45]} 24. Rxf5 {[%clk 0:01:56]}  Qxc6 {[%clk 0:01:38]} 25. Ne7+ {[%clk 0:01:53]}  Kg7 {[%clk 0:01:28]} 26. Rxf8 {[%clk 0:01:38]}  Qxg2+ {[%clk 0:01:00]} 27. Kxg2 {[%clk 0:01:33]}  Rxf8 {[%clk 0:00:57]} 28. Nc6 {[%clk 0:01:32]}  Bd6 {[%clk 0:00:56]} 29. Nxd4 {[%clk 0:01:28]}  Bxa3 {[%clk 0:00:56]} 30. Ne6+ {[%clk 0:01:28]}  Kf7 {[%clk 0:00:55]} 31. Nxf8 {[%clk 0:01:29]}  Bxf8 {[%clk 0:00:55]} 32. d4 {[%clk 0:01:27]}  Ke6 {[%clk 0:00:54]} 33. Kf3 {[%clk 0:01:27]}  Bd6 {[%clk 0:00:51]} 34. Ke4 {[%clk 0:01:27]}  Bc7 {[%clk 0:00:49]} 35. Rf1 {[%clk 0:01:24]}  a6 {[%clk 0:00:39]} 36. d5+ {[%clk 0:01:21]}  Ke7 {[%clk 0:00:39]} 37. Kd4 {[%clk 0:01:21]}  Bd6 {[%clk 0:00:38]} 38. Re1+ {[%clk 0:01:22]}  Kf7 {[%clk 0:00:30]} 39. Re6 {[%clk 0:01:23]}  Bc5+ {[%clk 0:00:30]} 40. Ke4 {[%clk 0:01:22]}  h5 {[%clk 0:00:30]} 41. h3 {[%clk 0:01:22]}  Bf2 {[%clk 0:00:21]} 42. g4 {[%clk 0:01:21]}  hxg4 {[%clk 0:00:21]} 43. hxg4 {[%clk 0:01:22]}  a5 {[%clk 0:00:17]} 44. Rc6 {[%clk 0:01:22]}  a4 {[%clk 0:00:15]} 45. g5 {[%clk 0:01:20]}  a3 {[%clk 0:00:14]} 46. Rf6+ {[%clk 0:01:20]}  Ke7 {[%clk 0:00:13]} 47. Rxf2 {[%clk 0:01:21]}  Kd6 {[%clk 0:00:11]} 48. Kd4 {[%clk 0:01:21]} 1-0


[Site "https://www.chess.com"]

[Event "Titled Tuesday Blitz February 15 Early 2022"]
[White "Jakubowski, Krzysztof"]
[Black "Nguyen, Ngoc Truong Son"]
[WhiteFideId "1112848"]
[BlackFideId "12401110"]
[WhiteElo "2365"]
[BlackElo "2596"]
[Result "0-1"]
[Round "11"]
[TimeControl "180+1"]
[Date "2022.02.15"]
[WhiteClock "0:00:02"]
[BlackClock "0:00:19"]

1. e4 {[%clk 0:03:00]}  c5 {[%clk 0:02:59]} 2. Nf3 {[%clk 0:03:00]}  d6 {[%clk 0:02:59]} 3. d4 {[%clk 0:03:00]}  cxd4 {[%clk 0:03:00]} 4. Nxd4 {[%clk 0:03:00]}  Nf6 {[%clk 0:03:01]} 5. Nc3 {[%clk 0:03:00]}  a6 {[%clk 0:03:01]} 6. Be3 {[%clk 0:03:00]}  e6 {[%clk 0:02:59]} 7. Be2 {[%clk 0:02:58]}  Be7 {[%clk 0:02:58]} 8. O-O {[%clk 0:02:55]}  b5 {[%clk 0:02:56]} 9. f4 {[%clk 0:02:50]}  b4 {[%clk 0:02:52]} 10. e5 {[%clk 0:02:49]}  bxc3 {[%clk 0:02:52]} 11. exf6 {[%clk 0:02:49]}  Bxf6 {[%clk 0:02:51]} 12. bxc3 {[%clk 0:02:46]}  O-O {[%clk 0:02:45]} 13. Rb1 {[%clk 0:02:36]}  Nd7 {[%clk 0:02:39]} 14. Bf3 {[%clk 0:02:12]}  Rb8 {[%clk 0:02:35]} 15. Rb3 {[%clk 0:02:03]}  Qc7 {[%clk 0:02:32]} 16. Qd2 {[%clk 0:01:46]}  Nb6 {[%clk 0:02:24]} 17. Qe2 {[%clk 0:01:37]}  Na4 {[%clk 0:02:11]} 18. Rxb8 {[%clk 0:01:30]}  Qxb8 {[%clk 0:02:12]} 19. Qc4 {[%clk 0:01:29]}  Bd7 {[%clk 0:02:06]} 20. Bc6 {[%clk 0:01:17]}  Bxc6 {[%clk 0:01:29]} 21. Qxc6 {[%clk 0:01:03]}  Nc5 {[%clk 0:01:27]} 22. f5 {[%clk 0:00:58]}  Qc8 {[%clk 0:01:15]} 23. fxe6 {[%clk 0:00:37]}  Nxe6 {[%clk 0:01:15]} 24. Qxd6 {[%clk 0:00:23]}  Qxc3 {[%clk 0:01:14]} 25. Nf5 {[%clk 0:00:23]}  Rd8 {[%clk 0:01:09]} 26. Qxa6 {[%clk 0:00:20]}  h5 {[%clk 0:00:40]} 27. a4 {[%clk 0:00:18]}  Qxc2 {[%clk 0:00:37]} 28. Bb6 {[%clk 0:00:17]}  Rd1 {[%clk 0:00:27]} 29. Ne3 {[%clk 0:00:17]}  Rxf1+ {[%clk 0:00:27]} 30. Qxf1 {[%clk 0:00:17]}  Qxa4 {[%clk 0:00:26]} 31. Kh1 {[%clk 0:00:14]}  Qb3 {[%clk 0:00:24]} 32. Ba7 {[%clk 0:00:12]}  Qb7 {[%clk 0:00:23]} 33. Nd5 {[%clk 0:00:06]}  Qxd5 {[%clk 0:00:23]} 34. h3 {[%clk 0:00:05]}  Be5 {[%clk 0:00:21]} 35. Bg1 {[%clk 0:00:05]}  Nf4 {[%clk 0:00:20]} 36. Kh2 {[%clk 0:00:03]}  Nxg2+ {[%clk 0:00:19]} 37. Kh1 {[%clk 0:00:02]}  Ne3+ {[%clk 0:00:19]} 0-1


[Site "https://www.chess.com"]

[Event "Titled Tuesday Blitz February 15 Early 2022"]
[White "Johnson, Ben"]
[Black "Mirzanurov, Bulat"]
[WhiteFideId "2010917"]
[BlackFideId "4184521"]
[WhiteElo "2206"]
[BlackElo "2116"]
[Result "1/2-1/2"]
[Round "11"]
[TimeControl "180+1"]
[Date "2022.02.15"]
[WhiteClock "0:00:07"]
[BlackClock "0:00:07"]

1. Nf3 {[%clk 0:03:00]}  d5 {[%clk 0:02:54]} 2. e3 {[%clk 0:03:01]}  Nf6 {[%clk 0:02:52]} 3. c4 {[%clk 0:03:01]}  c5 {[%clk 0:02:48]} 4. cxd5 {[%clk 0:02:56]}  Nxd5 {[%clk 0:02:46]} 5. Nc3 {[%clk 0:02:52]}  Nc6 {[%clk 0:02:28]} 6. Qb3 {[%clk 0:02:47]}  e6 {[%clk 0:02:24]} 7. Bb5 {[%clk 0:02:38]}  Nxc3 {[%clk 0:02:18]} 8. Bxc6+ {[%clk 0:02:32]}  bxc6 {[%clk 0:02:19]} 9. Qxc3 {[%clk 0:02:30]}  Ba6 {[%clk 0:02:18]} 10. b3 {[%clk 0:02:10]}  Be7 {[%clk 0:02:11]} 11. Ne5 {[%clk 0:01:59]}  Bf6 {[%clk 0:02:01]} 12. f4 {[%clk 0:01:59]}  Qd6 {[%clk 0:02:00]} 13. Ba3 {[%clk 0:01:50]}  Qd5 {[%clk 0:01:42]} 14. Kf2 {[%clk 0:01:29]}  Rd8 {[%clk 0:01:22]} 15. Rhd1 {[%clk 0:01:26]}  O-O {[%clk 0:00:55]} 16. Qxc5 {[%clk 0:01:17]}  Bxe5 {[%clk 0:00:32]} 17. Qxd5 {[%clk 0:01:03]}  cxd5 {[%clk 0:00:24]} 18. fxe5 {[%clk 0:00:56]}  Rfe8 {[%clk 0:00:24]} 19. d4 {[%clk 0:00:52]}  Rc8 {[%clk 0:00:23]} 20. Rac1 {[%clk 0:00:52]}  Rxc1 {[%clk 0:00:20]} 21. Rxc1 {[%clk 0:00:53]}  Rc8 {[%clk 0:00:21]} 22. Bc5 {[%clk 0:00:52]}  Rc7 {[%clk 0:00:20]} 23. a4 {[%clk 0:00:49]}  f6 {[%clk 0:00:19]} 24. exf6 {[%clk 0:00:48]}  gxf6 {[%clk 0:00:20]} 25. Kf3 {[%clk 0:00:48]}  Kf7 {[%clk 0:00:19]} 26. g4 {[%clk 0:00:42]}  e5 {[%clk 0:00:20]} 27. h4 {[%clk 0:00:41]}  Ke6 {[%clk 0:00:19]} 28. Rg1 {[%clk 0:00:38]}  exd4 {[%clk 0:00:17]} 29. exd4 {[%clk 0:00:37]}  Bd3 {[%clk 0:00:17]} 30. Bxa7 {[%clk 0:00:33]}  Be4+ {[%clk 0:00:17]} 31. Kf4 {[%clk 0:00:30]}  Rxa7 {[%clk 0:00:17]} 32. Rc1 {[%clk 0:00:28]}  Rb7 {[%clk 0:00:17]} 33. Rc6+ {[%clk 0:00:22]}  Ke7 {[%clk 0:00:16]} 34. Rc3 {[%clk 0:00:22]}  Bg2 {[%clk 0:00:15]} 35. a5 {[%clk 0:00:21]}  Bf1 {[%clk 0:00:14]} 36. Rc5 {[%clk 0:00:16]}  Kd6 {[%clk 0:00:12]} 37. Rc3 {[%clk 0:00:14]}  Ra7 {[%clk 0:00:09]} 38. b4 {[%clk 0:00:13]}  Bc4 {[%clk 0:00:10]} 39. Kf5 {[%clk 0:00:12]}  Rb7 {[%clk 0:00:10]} 40. Kxf6 {[%clk 0:00:12]}  Rxb4 {[%clk 0:00:10]} 41. Ra3 {[%clk 0:00:11]}  Rb7 {[%clk 0:00:09]} 42. g5 {[%clk 0:00:11]}  Rb3 {[%clk 0:00:09]} 43. Rxb3 {[%clk 0:00:09]}  Bxb3 {[%clk 0:00:10]} 44. Kg7 {[%clk 0:00:10]}  Bc2 {[%clk 0:00:10]} 45. a6 {[%clk 0:00:08]}  Kc6 {[%clk 0:00:10]} 46. h5 {[%clk 0:00:07]}  Kb6 {[%clk 0:00:10]} 47. Kf6 {[%clk 0:00:07]}  Kxa6 {[%clk 0:00:09]} 48. Ke5 {[%clk 0:00:08]}  Be4 {[%clk 0:00:08]} 49. g6 {[%clk 0:00:07]}  hxg6 {[%clk 0:00:07]} 50. hxg6 {[%clk 0:00:08]}  Kb5 {[%clk 0:00:07]} 51. g7 {[%clk 0:00:07]}  Bh7 {[%clk 0:00:07]} 52. Kxd5 {[%clk 0:00:07]}  Bg8+ {[%clk 0:00:07]} 53. Kd6 {[%clk 0:00:07]}  Kc4 {[%clk 0:00:07]} 54. d5 {[%clk 0:00:06]}  Bxd5 {[%clk 0:00:06]} 55. Ke7 {[%clk 0:00:07]}  Kd4 {[%clk 0:00:06]} 56. Kf8 {[%clk 0:00:07]}  Ke5 {[%clk 0:00:07]} 57. g8=Q {[%clk 0:00:07]}  Bxg8 {[%clk 0:00:07]} 1/2-1/2


[Site "https://www.chess.com"]

[Event "Titled Tuesday Blitz February 15 Early 2022"]
[White "Joubert, Dantelle"]
[Black "Manukian, Artak"]
[WhiteFideId "14310813"]
[BlackFideId "13301373"]
[WhiteElo "1507"]
[BlackElo "2443"]
[Result "0-1"]
[Round "11"]
[TimeControl "180+1"]
[Date "2022.02.15"]
[WhiteClock "0:00:42"]
[BlackClock "0:01:00"]

1. Nf3 {[%clk 0:03:00]}  g6 {[%clk 0:02:57]} 2. c4 {[%clk 0:03:00]}  Bg7 {[%clk 0:02:57]} 3. Nc3 {[%clk 0:03:00]}  c5 {[%clk 0:02:57]} 4. d4 {[%clk 0:02:58]}  cxd4 {[%clk 0:02:57]} 5. Nxd4 {[%clk 0:02:58]}  Nc6 {[%clk 0:02:58]} 6. Ndb5 {[%clk 0:02:31]}  a6 {[%clk 0:02:55]} 7. Na3 {[%clk 0:02:31]}  Nf6 {[%clk 0:02:54]} 8. g3 {[%clk 0:02:28]}  O-O {[%clk 0:02:51]} 9. Bg2 {[%clk 0:02:22]}  d6 {[%clk 0:02:48]} 10. O-O {[%clk 0:02:20]}  Bg4 {[%clk 0:02:44]} 11. h3 {[%clk 0:02:11]}  Be6 {[%clk 0:02:40]} 12. Nd5 {[%clk 0:02:10]}  Bxd5 {[%clk 0:02:40]} 13. cxd5 {[%clk 0:02:10]}  Nb8 {[%clk 0:02:33]} 14. Be3 {[%clk 0:01:49]}  Nbd7 {[%clk 0:02:32]} 15. Rc1 {[%clk 0:01:45]}  b5 {[%clk 0:02:31]} 16. Qd2 {[%clk 0:01:43]}  Rc8 {[%clk 0:02:21]} 17. Rxc8 {[%clk 0:01:41]}  Qxc8 {[%clk 0:02:20]} 18. Rc1 {[%clk 0:01:41]}  Qb7 {[%clk 0:02:19]} 19. Qc2 {[%clk 0:01:39]}  Nb6 {[%clk 0:02:00]} 20. Bxb6 {[%clk 0:01:30]}  Qxb6 {[%clk 0:01:56]} 21. Qc6 {[%clk 0:01:29]}  Qd4 {[%clk 0:01:46]} 22. Rc2 {[%clk 0:01:18]}  Ne4 {[%clk 0:01:42]} 23. e3 {[%clk 0:01:09]}  Qd1+ {[%clk 0:01:36]} 24. Kh2 {[%clk 0:01:08]}  Nd2 {[%clk 0:01:10]} 25. Qxa6 {[%clk 0:00:50]}  b4 {[%clk 0:01:05]} 26. Qd3 {[%clk 0:00:45]}  Nf3+ {[%clk 0:01:00]} 27. Bxf3 {[%clk 0:00:42]}  Qxd3 {[%clk 0:01:00]} 0-1


[Site "https://www.chess.com"]

[Event "Titled Tuesday Blitz February 15 Early 2022"]
[White "Khripachenko, Alexander"]
[Black "Nesterov, Arseniy"]
[WhiteFideId "54184975"]
[BlackFideId "24198455"]
[WhiteElo "2177"]
[BlackElo "2489"]
[Result "0-1"]
[Round "11"]
[TimeControl "180+1"]
[Date "2022.02.15"]
[WhiteClock "0:00:02"]
[BlackClock "0:00:13"]

1. e4 {[%clk 0:03:00]}  e5 {[%clk 0:03:00]} 2. Nf3 {[%clk 0:03:00]}  Nc6 {[%clk 0:03:00]} 3. Nc3 {[%clk 0:02:53]}  Nf6 {[%clk 0:03:00]} 4. d4 {[%clk 0:02:53]}  exd4 {[%clk 0:02:59]} 5. Nxd4 {[%clk 0:02:54]}  Nxe4 {[%clk 0:02:59]} 6. Nxe4 {[%clk 0:01:35]}  Qe7 {[%clk 0:02:58]} 7. Bd3 {[%clk 0:01:35]}  Nxd4 {[%clk 0:02:57]} 8. O-O {[%clk 0:01:35]}  d5 {[%clk 0:02:55]} 9. Ng5 {[%clk 0:01:11]}  Ne6 {[%clk 0:02:35]} 10. Re1 {[%clk 0:01:03]}  Bd7 {[%clk 0:02:30]} 11. Qf3 {[%clk 0:01:01]}  c6 {[%clk 0:02:16]} 12. Nxh7 {[%clk 0:00:50]}  Rxh7 {[%clk 0:01:50]} 13. Bxh7 {[%clk 0:00:48]}  g6 {[%clk 0:01:50]} 14. Bg8 {[%clk 0:00:42]}  Bg7 {[%clk 0:01:47]} 15. Bg5 {[%clk 0:00:21]}  Qf8 {[%clk 0:01:40]} 16. Bh7 {[%clk 0:00:21]}  Qh8 {[%clk 0:01:35]} 17. Qh3 {[%clk 0:00:21]}  Bf6 {[%clk 0:01:13]} 18. Be3 {[%clk 0:00:09]}  O-O-O {[%clk 0:01:11]} 19. Bxa7 {[%clk 0:00:08]}  Ng5 {[%clk 0:00:20]} 20. Qg3 {[%clk 0:00:06]}  Be6 {[%clk 0:00:13]} 21. Qb8+ {[%clk 0:00:05]}  Kd7 {[%clk 0:00:13]} 22. Qxb7+ {[%clk 0:00:05]}  Ke8 {[%clk 0:00:14]} 23. Bb6 {[%clk 0:00:02]}  Qxh7 {[%clk 0:00:12]} 24. Bxd8 {[%clk 0:00:02]}  Bxd8 {[%clk 0:00:13]} 25. Qxc6+ {[%clk 0:00:02]}  Kf8 {[%clk 0:00:13]} 0-1


[Site "https://www.chess.com"]

[Event "Titled Tuesday Blitz February 15 Early 2022"]
[White "Kopylov, Alexander A."]
[Black "Dobrov, Vladimir"]
[WhiteFideId "4164857"]
[BlackFideId "4136594"]
[WhiteElo "2436"]
[BlackElo "2614"]
[Result "0-1"]
[Round "11"]
[TimeControl "180+1"]
[Date "2022.02.15"]
[WhiteClock "0:00:08"]
[BlackClock "0:00:11"]

1. e4 {[%clk 0:03:00]}  c5 {[%clk 0:02:59]} 2. Nf3 {[%clk 0:03:00]}  Nc6 {[%clk 0:02:59]} 3. d4 {[%clk 0:03:00]}  cxd4 {[%clk 0:03:00]} 4. Nxd4 {[%clk 0:03:01]}  Qb6 {[%clk 0:03:01]} 5. Nb3 {[%clk 0:03:00]}  Nf6 {[%clk 0:03:01]} 6. Bd3 {[%clk 0:02:59]}  e6 {[%clk 0:03:01]} 7. O-O {[%clk 0:02:59]}  a6 {[%clk 0:03:01]} 8. c4 {[%clk 0:02:57]}  d6 {[%clk 0:02:57]} 9. Nc3 {[%clk 0:02:57]}  Be7 {[%clk 0:02:56]} 10. Kh1 {[%clk 0:02:57]}  h5 {[%clk 0:02:55]} 11. h3 {[%clk 0:02:55]}  Ne5 {[%clk 0:02:43]} 12. f4 {[%clk 0:02:48]}  Nxd3 {[%clk 0:02:35]} 13. Qxd3 {[%clk 0:02:48]}  Qc7 {[%clk 0:02:35]} 14. e5 {[%clk 0:02:38]}  dxe5 {[%clk 0:02:34]} 15. fxe5 {[%clk 0:02:39]}  Qxe5 {[%clk 0:02:05]} 16. Bf4 {[%clk 0:02:38]}  Qf5 {[%clk 0:02:05]} 17. Qe3 {[%clk 0:01:55]}  Qg6 {[%clk 0:01:57]} 18. Rad1 {[%clk 0:01:42]}  Bd7 {[%clk 0:01:50]} 19. Na5 {[%clk 0:01:41]}  Bb4 {[%clk 0:01:31]} 20. Nxb7 {[%clk 0:00:10]}  Bc6 {[%clk 0:01:30]} 21. Rg1 {[%clk 0:00:10]}  Bxb7 {[%clk 0:00:58]} 22. Qb6 {[%clk 0:00:10]}  Bxc3 {[%clk 0:00:43]} 23. Qxb7 {[%clk 0:00:10]}  O-O {[%clk 0:00:43]} 24. bxc3 {[%clk 0:00:10]}  Rac8 {[%clk 0:00:42]} 25. Qxa6 {[%clk 0:00:09]}  Ne4 {[%clk 0:00:36]} 26. Kh2 {[%clk 0:00:09]}  Nxc3 {[%clk 0:00:25]} 27. Rd7 {[%clk 0:00:09]}  Ne2 {[%clk 0:00:24]} 28. Rf1 {[%clk 0:00:08]}  e5 {[%clk 0:00:11]} 0-1


[Site "https://www.chess.com"]

[Event "Titled Tuesday Blitz February 15 Early 2022"]
[White "Kretov, Evgenij"]
[Black "Vovk, Orest"]
[WhiteFideId "4167821"]
[BlackFideId "14113490"]
[WhiteElo "2303"]
[BlackElo "2203"]
[Result "0-1"]
[Round "11"]
[TimeControl "180+1"]
[Date "2022.02.15"]
[WhiteClock "0:00:30"]
[BlackClock "0:00:09"]

1. d4 {[%clk 0:03:00]}  e5 {[%clk 0:02:59]} 2. dxe5 {[%clk 0:02:59]}  Nc6 {[%clk 0:02:59]} 3. Nf3 {[%clk 0:02:59]}  Qe7 {[%clk 0:02:58]} 4. Bf4 {[%clk 0:02:53]}  Qb4+ {[%clk 0:02:58]} 5. Bd2 {[%clk 0:02:53]}  Qxb2 {[%clk 0:02:58]} 6. Nc3 {[%clk 0:02:52]}  Bb4 {[%clk 0:02:59]} 7. Rb1 {[%clk 0:02:50]}  Qa3 {[%clk 0:02:58]} 8. Rb3 {[%clk 0:02:39]}  Qa5 {[%clk 0:02:57]} 9. a3 {[%clk 0:02:38]}  Bxc3 {[%clk 0:02:57]} 10. Bxc3 {[%clk 0:02:38]}  Qc5 {[%clk 0:02:57]} 11. e3 {[%clk 0:02:28]}  Nge7 {[%clk 0:02:54]} 12. Qd2 {[%clk 0:02:25]}  a6 {[%clk 0:02:53]} 13. e6 {[%clk 0:02:18]}  dxe6 {[%clk 0:02:42]} 14. Bxg7 {[%clk 0:02:18]}  Rg8 {[%clk 0:02:41]} 15. Bb2 {[%clk 0:02:15]}  b6 {[%clk 0:02:24]} 16. g3 {[%clk 0:01:59]}  Bb7 {[%clk 0:02:20]} 17. Bg2 {[%clk 0:01:59]}  Rd8 {[%clk 0:01:38]} 18. Rd3 {[%clk 0:01:58]}  Rxd3 {[%clk 0:01:22]} 19. cxd3 {[%clk 0:01:58]}  Qa5 {[%clk 0:01:17]} 20. O-O {[%clk 0:01:50]}  Qxd2 {[%clk 0:01:16]} 21. Nxd2 {[%clk 0:01:50]}  Na5 {[%clk 0:01:16]} 22. Be5 {[%clk 0:01:31]}  Bxg2 {[%clk 0:01:13]} 23. Kxg2 {[%clk 0:01:31]}  Kd8 {[%clk 0:01:01]} 24. Rc1 {[%clk 0:01:25]}  Nac6 {[%clk 0:00:52]} 25. Bf6 {[%clk 0:01:24]}  Kd7 {[%clk 0:00:49]} 26. Ne4 {[%clk 0:01:24]}  Nd5 {[%clk 0:00:45]} 27. Bb2 {[%clk 0:01:24]}  f5 {[%clk 0:00:44]} 28. Nc3 {[%clk 0:01:19]}  Nxc3 {[%clk 0:00:43]} 29. Bxc3 {[%clk 0:01:19]}  Ne7 {[%clk 0:00:41]} 30. Kf3 {[%clk 0:01:16]}  c5 {[%clk 0:00:39]} 31. d4 {[%clk 0:01:04]}  c4 {[%clk 0:00:33]} 32. a4 {[%clk 0:01:00]}  b5 {[%clk 0:00:29]} 33. axb5 {[%clk 0:00:59]}  axb5 {[%clk 0:00:30]} 34. Ra1 {[%clk 0:00:59]}  Nc6 {[%clk 0:00:30]} 35. Rb1 {[%clk 0:00:43]}  Rb8 {[%clk 0:00:28]} 36. Bb4 {[%clk 0:00:44]}  Nxb4 {[%clk 0:00:27]} 37. Rxb4 {[%clk 0:00:44]}  Kc6 {[%clk 0:00:28]} 38. Ke2 {[%clk 0:00:44]}  Ra8 {[%clk 0:00:26]} 39. Rb2 {[%clk 0:00:41]}  Ra4 {[%clk 0:00:26]} 40. f3 {[%clk 0:00:39]}  b4 {[%clk 0:00:25]} 41. e4 {[%clk 0:00:39]}  fxe4 {[%clk 0:00:22]} 42. fxe4 {[%clk 0:00:39]}  b3 {[%clk 0:00:23]} 43. Kd2 {[%clk 0:00:39]}  Ra2 {[%clk 0:00:13]} 44. Kc3 {[%clk 0:00:38]}  Rxb2 {[%clk 0:00:12]} 45. Kxb2 {[%clk 0:00:38]}  Kb5 {[%clk 0:00:13]} 46. Kc3 {[%clk 0:00:36]}  Ka4 {[%clk 0:00:12]} 47. d5 {[%clk 0:00:36]}  exd5 {[%clk 0:00:10]} 48. e5 {[%clk 0:00:32]}  Kb5 {[%clk 0:00:10]} 49. g4 {[%clk 0:00:30]}  Kc5 {[%clk 0:00:08]} 50. h4 {[%clk 0:00:30]}  d4+ {[%clk 0:00:09]} 51. Kd2 {[%clk 0:00:30]}  Kd5 {[%clk 0:00:09]} 0-1


[Site "https://www.chess.com"]

[Event "Titled Tuesday Blitz February 15 Early 2022"]
[White "Krylov, Ivan"]
[Black "Domingo Nunez, Alejandro"]
[WhiteFideId "24128066"]
[BlackFideId "22245561"]
[WhiteElo "2258"]
[BlackElo "2215"]
[Result "1-0"]
[Round "11"]
[TimeControl "180+1"]
[Date "2022.02.15"]
[WhiteClock "0:00:45"]
[BlackClock "0:01:09"]

1. e4 {[%clk 0:03:00]}  g6 {[%clk 0:02:42]} 2. d4 {[%clk 0:03:00]}  Bg7 {[%clk 0:02:42]} 3. Nc3 {[%clk 0:03:00]}  c6 {[%clk 0:02:43]} 4. f3 {[%clk 0:03:00]}  d5 {[%clk 0:02:43]} 5. e5 {[%clk 0:03:00]}  f6 {[%clk 0:02:44]} 6. f4 {[%clk 0:02:58]}  fxe5 {[%clk 0:02:43]} 7. fxe5 {[%clk 0:02:57]}  Nh6 {[%clk 0:02:44]} 8. Nf3 {[%clk 0:02:57]}  O-O {[%clk 0:02:44]} 9. Bg5 {[%clk 0:02:52]}  Nf5 {[%clk 0:02:40]} 10. Qd2 {[%clk 0:02:42]}  c5 {[%clk 0:02:37]} 11. dxc5 {[%clk 0:02:31]}  d4 {[%clk 0:02:36]} 12. O-O-O {[%clk 0:02:29]}  Nc6 {[%clk 0:02:30]} 13. Bc4+ {[%clk 0:02:22]}  Kh8 {[%clk 0:02:28]} 14. Nd5 {[%clk 0:02:17]}  Be6 {[%clk 0:02:24]} 15. Nxe7 {[%clk 0:02:08]}  Qd7 {[%clk 0:02:05]} 16. Bxe6 {[%clk 0:01:54]}  Qxe6 {[%clk 0:02:02]} 17. Nxc6 {[%clk 0:01:54]}  Qxa2 {[%clk 0:02:03]} 18. Qa5 {[%clk 0:01:38]}  Qc4 {[%clk 0:02:00]} 19. Ncxd4 {[%clk 0:01:34]}  Rac8 {[%clk 0:01:57]} 20. Qc3 {[%clk 0:01:29]}  Qa4 {[%clk 0:01:54]} 21. Qa3 {[%clk 0:01:26]}  Qc4 {[%clk 0:01:53]} 22. Nxf5 {[%clk 0:01:14]}  Rxf5 {[%clk 0:01:51]} 23. Rd4 {[%clk 0:01:11]}  Qe6 {[%clk 0:01:47]} 24. Rhd1 {[%clk 0:01:09]}  h6 {[%clk 0:01:45]} 25. Rd8+ {[%clk 0:01:05]}  Kh7 {[%clk 0:01:42]} 26. Be3 {[%clk 0:00:57]}  Rxd8 {[%clk 0:01:17]} 27. Rxd8 {[%clk 0:00:56]}  Rxf3 {[%clk 0:01:17]} 28. gxf3 {[%clk 0:00:54]}  Qxe5 {[%clk 0:01:18]} 29. Qb3 {[%clk 0:00:47]}  Qf6 {[%clk 0:01:09]} 30. Qg8# {[%clk 0:00:45]} 1-0


[Site "https://www.chess.com"]

[Event "Titled Tuesday Blitz February 15 Early 2022"]
[White "Ljukin, Sergei"]
[Black "Varney, Zoe"]
[WhiteFideId "14102200"]
[BlackFideId "436135"]
[WhiteElo "2312"]
[BlackElo "1808"]
[Result "1-0"]
[Round "11"]
[TimeControl "180+1"]
[Date "2022.02.15"]
[WhiteClock "0:00:15"]
[BlackClock "0:00:01"]

1. e4 {[%clk 0:02:49]}  e5 {[%clk 0:02:59]} 2. Nf3 {[%clk 0:02:48]}  Nc6 {[%clk 0:02:59]} 3. Bb5 {[%clk 0:02:48]}  a6 {[%clk 0:03:00]} 4. Ba4 {[%clk 0:02:49]}  Nf6 {[%clk 0:03:00]} 5. Qe2 {[%clk 0:02:48]}  b5 {[%clk 0:02:55]} 6. Bb3 {[%clk 0:02:48]}  Bc5 {[%clk 0:02:55]} 7. c3 {[%clk 0:02:48]}  O-O {[%clk 0:02:55]} 8. d3 {[%clk 0:02:48]}  h6 {[%clk 0:02:51]} 9. Be3 {[%clk 0:02:47]}  Bxe3 {[%clk 0:02:45]} 10. fxe3 {[%clk 0:02:48]}  d6 {[%clk 0:02:45]} 11. Nbd2 {[%clk 0:02:47]}  Be6 {[%clk 0:02:44]} 12. O-O {[%clk 0:02:44]}  Na5 {[%clk 0:02:34]} 13. Bc2 {[%clk 0:02:43]}  c5 {[%clk 0:02:34]} 14. d4 {[%clk 0:02:36]}  cxd4 {[%clk 0:02:18]} 15. exd4 {[%clk 0:02:36]}  Qb6 {[%clk 0:02:15]} 16. Kh1 {[%clk 0:02:34]}  Nc4 {[%clk 0:02:11]} 17. b3 {[%clk 0:02:27]}  Nxd2 {[%clk 0:02:03]} 18. Qxd2 {[%clk 0:02:27]}  exd4 {[%clk 0:01:59]} 19. Nxd4 {[%clk 0:02:23]}  Rac8 {[%clk 0:01:50]} 20. Rf3 {[%clk 0:01:52]}  d5 {[%clk 0:01:35]} 21. e5 {[%clk 0:01:48]}  Ne4 {[%clk 0:01:35]} 22. Bxe4 {[%clk 0:01:41]}  dxe4 {[%clk 0:01:35]} 23. Rg3 {[%clk 0:01:41]}  Bd7 {[%clk 0:00:55]} 24. Rf1 {[%clk 0:01:40]}  Kh7 {[%clk 0:00:45]} 25. Qe3 {[%clk 0:01:19]}  Qb7 {[%clk 0:00:27]} 26. Rf4 {[%clk 0:01:10]}  f5 {[%clk 0:00:15]} 27. e6 {[%clk 0:01:02]}  Be8 {[%clk 0:00:13]} 28. Nxf5 {[%clk 0:00:58]}  Bg6 {[%clk 0:00:13]} 29. Nh4 {[%clk 0:00:41]}  Rxc3 {[%clk 0:00:07]} 30. Qxc3 {[%clk 0:00:28]}  Rxf4 {[%clk 0:00:06]} 31. h3 {[%clk 0:00:26]}  Rxh4 {[%clk 0:00:06]} 32. Qe5 {[%clk 0:00:23]}  Rh5 {[%clk 0:00:05]} 33. Qd6 {[%clk 0:00:20]}  Rd5 {[%clk 0:00:04]} 34. Qf4 {[%clk 0:00:16]}  Qe7 {[%clk 0:00:03]} 35. Qg4 {[%clk 0:00:15]}  Bf5 {[%clk 0:00:02]} 36. Qh5 {[%clk 0:00:16]}  Qxe6 {[%clk 0:00:01]} 37. Qe2 {[%clk 0:00:15]} 1-0


[Site "https://www.chess.com"]